bitfinex/quotes_BTCUSD_20230113
["timestamp","ask_amount","ask_price","bid_price","bid_amount"]
[1673642988389,0.01275295,19433.0,19432.0,3.80797796]
[1673642988637,0.01275295,19433.0,19432.0,2.1050213]
[1673642988881,0.01275295,19433.0,19432.0,2.9269429]
[1673642989393,0.01275295,19433.0,19432.0,3.07937559]
[1673642989900,0.01275295,19433.0,19432.0,3.21837559]
[1673642990645,0.01275295,19433.0,19432.0,3.07937559]
[1673642991142,0.01275295,19433.0,19432.0,3.37015737]
[1673642991389,0.01275295,19433.0,19432.0,2.37662628]
[1673642991646,0.01275295,19433.0,19432.0,2.24272329]
[1673642992633,0.01275295,19433.0,19432.0,2.0901213]
[1673642992887,0.01275295,19433.0,19432.0,1.98008676]
[1673642993131,0.01275295,19433.0,19432.0,2.26771003]
[1673642993880,0.01225295,19433.0,19432.0,3.08252702]
[1673642994362,0.01225295,19433.0,19432.0,3.31140882]
[1673642994616,0.01225295,19433.0,19432.0,3.10882802]
[1673642994859,0.01225295,19433.0,19432.0,3.26140315]
[1673642995356,0.01225295,19433.0,19432.0,3.41404249]
[1673642995871,0.01225295,19433.0,19432.0,3.1851395]
[1673642996370,0.66458061,19433.0,19432.0,0.87338946]
[1673642996632,0.88715269,19433.0,19432.0,0.138]
[1673642996904,0.67684775,19433.0,19432.0,0.138]
[1673642997154,1.19143575,19433.0,19432.0,0.138]
[1673642997402,0.67615507,19433.0,19432.0,0.0138]
[1673642997647,0.01325295,19433.0,19432.0,0.1528]
[1673642997899,0.63669423,19434.0,19433.0,0.54688753]
[1673642998142,0.64519423,19434.0,19433.0,0.54688753]
[1673642998648,0.64519423,19434.0,19430.0,1.62817519]
[1673642998893,0.64519423,19434.0,19432.0,0.14]
[1673642998894,0.56856404,19433.0,19432.0,0.14]
[1673642999139,0.56256404,19433.0,19430.0,0.89622719]
[1673642999402,0.56256404,19433.0,19430.0,0.83889742]
[1673642999403,0.77286898,19433.0,19430.0,0.83889742]
[1673642999653,0.56256404,19433.0,19431.0,0.59051756]
[1673642999896,0.56356404,19433.0,19432.0,0.14]
[1673643000137,0.56256404,19433.0,19431.0,0.74315771]
[1673643000387,0.515598,19433.0,19431.0,0.97209875]
[1673643000641,0.21030494,19432.0,19430.0,0.29164015]
[1673643000894,0.10427568,19431.0,19430.0,0.139]
[1673643001398,1.02997468,19431.0,19430.0,0.139]
[1673643001643,1.43795768,19431.0,19430.0,0.139]
[1673643001888,1.43795768,19431.0,19427.0,0.38158119]
[1673643001889,1.94614272,19431.0,19427.0,0.57945304]
[1673643002135,1.38352366,19431.0,19430.0,0.11583807]
[1673643002398,1.17216187,19431.0,19430.0,0.11583807]
[1673643002645,1.27574487,19431.0,19430.0,0.11583807]
[1673643002893,1.68480287,19431.0,19429.0,0.60493127]
[1673643003143,1.18166187,19431.0,19429.0,0.60493127]
[1673643003389,1.17866187,19431.0,19430.0,0.06049313]
[1673643003634,0.65988504,19431.0,19430.0,0.06049313]
[1673643004622,0.65788504,19431.0,19430.0,0.06049313]
[1673643004864,0.65588504,19431.0,19430.0,0.06049313]
[1673643005106,0.65788504,19431.0,19430.0,0.066]
[1673643005381,0.002,19431.0,19430.0,1.13619588]
[1673643005632,0.002,19431.0,19430.0,2.22784003]
[1673643005907,0.002,19431.0,19430.0,1.71386475]
[1673643006161,0.002,19431.0,19430.0,1.88944126]
[1673643006437,0.002,19431.0,19430.0,1.46053188]
[1673643006699,0.002,19431.0,19430.0,0.905004]
[1673643006940,0.002,19431.0,19430.0,1.75788881]
[1673643007195,0.002,19431.0,19430.0,2.10658148]
[1673643007448,3.17521253,19435.0,19431.0,0.1]
[1673643007787,3.17521253,19435.0,19433.0,0.22917608]
[1673643007788,1.4186,19435.0,19433.0,0.22917608]
[1673643007973,1.4186,19435.0,19434.0,0.324262]
[1673643008211,0.01373876,19438.0,19434.0,2.18904911]
[1673643008459,0.01373876,19438.0,19436.0,0.1]
[1673643008460,0.01314258,19437.0,19436.0,0.1]
[1673643008705,0.01314258,19437.0,19436.0,1.601641]
[1673643008947,0.01314258,19437.0,19436.0,1.98339175]
[1673643009245,0.01314258,19437.0,19436.0,2.13625955]
[1673643009488,0.01314258,19437.0,19436.0,2.52587868]
[1673643009750,0.01314258,19437.0,19436.0,2.5049144]
[1673643009995,0.01314258,19437.0,19436.0,2.5049744]
[1673643010510,0.01614258,19437.0,19436.0,2.19151313]
[1673643010750,0.01614258,19437.0,19436.0,2.54498354]
[1673643010994,0.01914258,19437.0,19436.0,2.47791313]
[1673643011246,0.01914258,19437.0,19436.0,2.63080572]
[1673643011498,0.01914258,19437.0,19436.0,2.6087107]
[1673643011755,0.01314258,19437.0,19436.0,3.25659953]
[1673643012005,0.01314258,19437.0,19436.0,4.5691594]
[1673643012006,0.01422833,19437.0,19436.0,4.5691594]
[1673643012249,0.01122833,19437.0,19436.0,2.88038338]
[1673643012511,0.01522833,19437.0,19436.0,3.17086285]
[1673643012802,0.01373876,19438.0,19437.0,0.31708628]
[1673643013012,0.01337641,19440.0,19437.0,2.04336802]
[1673643013256,0.01337641,19440.0,19439.0,0.68172348]
[1673643013502,7.641e-05,19440.0,19439.0,2.74619126]
[1673643013769,0.01407908,19441.0,19440.0,0.2481]
[1673643014010,0.01407908,19441.0,19440.0,2.2754897]
[1673643014287,0.01407908,19441.0,19440.0,2.42778503]
[1673643014786,0.01807908,19441.0,19440.0,2.56578503]
[1673643015038,0.01807908,19441.0,19440.0,3.05481998]
[1673643015559,0.01807908,19441.0,19440.0,3.28347048]
[1673643016044,0.01807908,19441.0,19440.0,2.90252465]
[1673643016289,0.01807908,19441.0,19440.0,3.61101221]
[1673643016553,0.01807908,19441.0,19440.0,2.90252465]
[1673643016814,0.01807908,19441.0,19440.0,3.05481998]
[1673643017560,0.01807908,19441.0,19440.0,3.28347048]
[1673643017843,0.01807908,19441.0,19440.0,3.05481998]
[1673643018078,0.01807908,19441.0,19440.0,2.90258465]
[1673643018828,0.65917697,19446.0,19441.0,0.29025847]
[1673643018829,0.01576967,19446.0,19441.0,0.29025847]
[1673643019070,0.01576967,19446.0,19442.0,0.22259]
[1673643019320,0.01576967,19446.0,19442.0,3.276561]
[1673643019544,0.01576967,19446.0,19442.0,3.42870089]
[1673643019802,8.1e-07,19443.0,19442.0,3.98313247]
[1673643020067,0.01576967,19446.0,19442.0,3.57152561]
[1673643020300,0.01576967,19446.0,19445.0,0.2963]
[1673643020543,0.01576967,19446.0,19445.0,2.677444]
[1673643020778,0.01576967,19446.0,19445.0,3.5036767]
[1673643021268,0.01576967,19446.0,19445.0,3.5015013]
[1673643021539,0.01576967,19446.0,19445.0,3.9011089]
[1673643021780,0.01576967,19446.0,19445.0,4.53468358]
[1673643022026,0.01576967,19446.0,19445.0,4.0401089]
[1673643022527,0.01576967,19446.0,19445.0,3.9011089]
[1673643022776,0.01576967,19446.0,19445.0,4.0391089]
[1673643024233,0.01576967,19446.0,19445.0,4.0391689]
[1673643024475,0.01576967,19446.0,19445.0,3.9011689]
[1673643024727,0.01576967,19446.0,19445.0,3.6070443]
[1673643024969,0.01576967,19446.0,19445.0,3.7552443]
[1673643025471,6.7e-07,19446.0,19445.0,3.4027443]
[1673643025719,0.01576967,19447.0,19446.0,0.10951696]
[1673643025975,0.01576967,19447.0,19446.0,3.16256081]
[1673643026219,0.01576967,19447.0,19446.0,2.85087765]
[1673643026459,0.22607461,19447.0,19446.0,1.65962982]
[1673643026747,0.01576967,19447.0,19446.0,1.65745446]
[1673643026994,0.01576967,19447.0,19446.0,1.79545446]
[1673643027238,0.01576967,19447.0,19446.0,1.39796564]
[1673643027478,0.01576967,19447.0,19446.0,1.7610284]
[1673643027712,0.01576967,19447.0,19446.0,2.2872611]
[1673643028226,0.01576967,19447.0,19446.0,2.4492611]
[1673643028712,0.01576967,19447.0,19446.0,3.01585493]
[1673643028955,0.22607461,19447.0,19446.0,1.14986564]
[1673643029186,0.83159208,19447.0,19446.0,0.123553]
[1673643029444,0.62228714,19447.0,19446.0,0.138]
[1673643030183,0.62228714,19447.0,19444.0,6e-05]
[1673643030184,0.1,19445.0,19444.0,6e-05]
[1673643030424,0.63457594,19445.0,19444.0,6e-05]
[1673643030654,0.414271,19445.0,19444.0,6e-05]
[1673643030910,0.09,19445.0,19444.0,6e-05]
[1673643031404,0.09,19445.0,19444.0,0.126]
[1673643032124,0.09,19445.0,19444.0,0.0126]
[1673643032365,0.09,19445.0,19444.0,0.06]
[1673643032619,0.09,19445.0,19442.0,0.63597027]
[1673643032620,0.415271,19445.0,19442.0,0.63597027]
[1673643032880,0.092,19445.0,19444.0,0.134]
[1673643033171,0.09,19445.0,19440.0,0.743458]
[1673643033417,0.86559625,19444.0,19443.0,0.001]
[1673643033663,0.091,19445.0,19441.0,0.0743458]
[1673643033919,0.66620522,19444.0,19441.0,0.0743458]
[1673643034160,0.1,19443.0,19439.0,1.222243]
[1673643034417,0.21030494,19442.0,19439.0,1.222243]
[1673643034906,2.01498327,19444.0,19441.0,0.53907638]
[1673643035161,2.01498327,19444.0,19443.0,0.139]
[1673643035162,0.001,19444.0,19443.0,0.139]
[1673643035409,0.001,19444.0,19443.0,1.17237615]
[1673643035650,0.001,19444.0,19443.0,1.28581283]
[1673643035903,2.07203766,19447.0,19443.0,1.3937992]
[1673643036166,2.07203766,19447.0,19444.0,0.1]
[1673643036413,2.07203766,19447.0,19445.0,0.637834]
[1673643036660,0.56787214,19445.0,19444.0,0.514281]
[1673643037126,0.56787214,19445.0,19444.0,0.637849]
[1673643037365,0.56787214,19445.0,19444.0,0.514281]
[1673643037606,0.56787214,19445.0,19444.0,0.637853]
[1673643037850,0.56787214,19445.0,19444.0,0.123572]
[1673643038161,0.56787214,19445.0,19443.0,0.654323]
[1673643038398,0.56787214,19445.0,19443.0,0.70383798]
[1673643038645,0.56787214,19445.0,19444.0,0.123572]
[1673643038889,0.56787214,19445.0,19443.0,0.51214703]
[1673643039128,0.56887214,19445.0,19444.0,0.14]
[1673643039441,0.56787214,19445.0,19444.0,0.0652147]
[1673643039626,0.56887214,19445.0,19444.0,0.7030837]
[1673643039878,1.48926967,19447.0,19444.0,1.3173807]
[1673643040144,0.001,19445.0,19444.0,1.74804936]
[1673643040406,0.001,19445.0,19444.0,1.87161836]
[1673643041146,0.001,19445.0,19444.0,1.3173777]
[1673643041391,0.01576967,19447.0,19444.0,1.7655777]
[1673643041660,0.01576967,19447.0,19445.0,0.72415777]
[1673643041909,0.01576967,19447.0,19446.0,1.666287]
[1673643042164,0.01576967,19447.0,19446.0,2.212987]
[1673643042687,0.01676967,19447.0,19446.0,2.7392197]
[1673643042937,0.01576967,19447.0,19446.0,3.74764713]
[1673643043927,0.01676967,19447.0,19446.0,3.6666783]
[1673643044424,0.01676967,19447.0,19446.0,3.09102215]
[1673643044668,0.01676967,19447.0,19446.0,3.58564713]
[1673643044931,0.01676967,19447.0,19446.0,3.09102215]
[1673643045182,0.01676967,19447.0,19446.0,3.91617554]
[1673643045939,0.01676967,19447.0,19446.0,3.39102215]
[1673643046197,0.01676967,19447.0,19446.0,3.54299437]
[1673643046966,0.01676967,19447.0,19446.0,4.1849098]
[1673643047207,0.01676967,19447.0,19446.0,3.24438215]
[1673643047454,0.01676967,19447.0,19446.0,3.88548495]
[1673643047696,0.01676967,19447.0,19446.0,3.24438215]
[1673643047955,0.01676967,19447.0,19446.0,4.32656077]
[1673643048243,0.01676967,19447.0,19446.0,4.32685528]
[1673643048458,6.7e-07,19447.0,19446.0,4.84630436]
[1673643048708,0.1,19449.0,19447.0,0.00167629]
[1673643048952,0.01515696,19450.0,19447.0,0.00167629]
[1673643048953,0.01515696,19450.0,19448.0,3.63960888]
[1673643049204,0.01515696,19450.0,19449.0,2.3217973]
[1673643049449,0.01515696,19450.0,19449.0,3.4736533]
[1673643049696,0.01515696,19450.0,19449.0,2.98049776]
[1673643049932,0.00100096,19450.0,19449.0,4.00194908]
[1673643050188,0.01010411,19451.0,19449.0,4.78237009]
[1673643050434,0.01010411,19451.0,19450.0,1.94830394]
[1673643050693,0.01010411,19451.0,19450.0,3.95418925]
[1673643050942,0.01010411,19451.0,19450.0,4.10191374]
[1673643051206,0.01010411,19451.0,19450.0,4.62495475]
[1673643051451,0.01010411,19451.0,19450.0,4.39674294]
[1673643051701,0.01010411,19451.0,19450.0,4.6249487]
[1673643051957,0.01010411,19451.0,19450.0,4.39674294]
[1673643052207,0.01010411,19451.0,19450.0,4.77723026]
[1673643052451,0.00959279,19451.0,19450.0,4.28407472]
[1673643052699,0.00959279,19451.0,19450.0,3.98414958]
[1673643053195,0.00959279,19451.0,19450.0,3.96974551]
[1673643053437,0.00959279,19451.0,19450.0,3.96980551]
[1673643054163,0.00959279,19451.0,19450.0,3.96986551]
[1673643054412,0.00459279,19451.0,19450.0,3.74160333]
[1673643054683,0.00459279,19451.0,19450.0,4.12226958]
[1673643054928,0.00459279,19451.0,19450.0,3.96267329]
[1673643055181,0.00459279,19451.0,19450.0,3.73441111]
[1673643055429,0.00459279,19451.0,19450.0,3.96267329]
[1673643055983,0.00459279,19451.0,19450.0,3.73441111]
[1673643056214,0.00459279,19451.0,19450.0,1.98520413]
[1673643056729,0.00459279,19451.0,19450.0,1.98589615]
[1673643056976,0.9000472,19451.0,19450.0,0.775774]
[1673643057242,0.9000472,19451.0,19450.0,0.13812]
[1673643057737,0.9000472,19451.0,19450.0,0.00012]
[1673643057738,0.36730279,19451.0,19450.0,0.00012]
[1673643057987,0.46830279,19451.0,19450.0,0.13912]
[1673643058301,0.79157379,19451.0,19450.0,0.00012]
[1673643058515,1.35050498,19451.0,19450.0,0.13912]
[1673643058764,0.79257379,19451.0,19450.0,0.13912]
[1673643059005,1.37973886,19451.0,19450.0,0.00012]
[1673643059251,1.38073886,19451.0,19450.0,0.14006]
[1673643059521,1.38073886,19451.0,19450.0,0.14]
[1673643059771,1.13273886,19451.0,19450.0,0.14]
[1673643060008,0.80846786,19451.0,19450.0,0.14]
[1673643060497,1.13273886,19451.0,19450.0,0.14]
[1673643060992,1.02596886,19451.0,19450.0,0.14]
[1673643061248,0.59375786,19451.0,19450.0,0.14]
[1673643061508,0.59375786,19451.0,19450.0,0.154012]
[1673643062040,0.59375786,19451.0,19450.0,0.14]
[1673643062580,0.59375786,19451.0,19450.0,0.654138]
[1673643063378,0.56875786,19451.0,19450.0,0.654138]
[1673643064963,0.31130494,19451.0,19450.0,0.14]
[1673643065210,1.453495,19451.0,19450.0,0.14]
[1673643065989,1.51310114,19451.0,19450.0,0.14]
[1673643066492,1.08883014,19451.0,19450.0,0.14]
[1673643066749,0.57471814,19451.0,19450.0,0.14]
[1673643067006,0.001,19451.0,19450.0,0.654138]
[1673643068607,0.001,19451.0,19450.0,1.17317674]
[1673643068825,0.001,19451.0,19450.0,2.14134903]
[1673643069305,0.001,19451.0,19450.0,1.62231029]
[1673643069554,0.001,19451.0,19450.0,2.96474491]
[1673643069830,0.001,19451.0,19450.0,3.61039047]
[1673643070073,0.001,19451.0,19450.0,4.13662317]
[1673643070576,0.001,19451.0,19450.0,3.83662317]
[1673643070822,0.001,19451.0,19450.0,3.34329127]
[1673643071112,0.001,19451.0,19450.0,3.64329127]
[1673643071326,0.01438467,19452.0,19450.0,3.50329127]
[1673643071579,0.01438467,19452.0,19451.0,0.5023711]
[1673643071830,0.01438467,19452.0,19451.0,3.10890311]
[1673643072083,0.01438467,19452.0,19451.0,3.75446015]
[1673643072327,0.01438467,19452.0,19451.0,3.44993569]
[1673643072328,0.01294621,19452.0,19451.0,3.44993569]
[1673643072614,0.01474898,19457.0,19453.0,0.1]
[1673643072879,0.01474898,19457.0,19456.0,0.1468]
[1673643073132,0.01474898,19457.0,19456.0,1.812202]
[1673643073384,0.01474898,19457.0,19456.0,2.3384347]
[1673643073679,0.01474898,19457.0,19456.0,3.92046458]
[1673643073936,0.01474898,19457.0,19456.0,4.22043439]
[1673643074235,0.01474898,19457.0,19456.0,4.03271368]
[1673643074498,0.01474898,19457.0,19456.0,3.13865415]
[1673643074743,0.01474898,19457.0,19456.0,3.29553612]
[1673643075017,0.01474898,19457.0,19456.0,2.90691465]
[1673643075286,0.01474898,19457.0,19456.0,2.76891465]
[1673643075538,0.01474898,19457.0,19456.0,2.41077121]
[1673643076036,0.01474898,19457.0,19456.0,2.27277121]
[1673643076333,0.01474898,19457.0,19456.0,1.804402]
[1673643076605,0.01474898,19457.0,19456.0,1.151422]
[1673643076606,0.56409295,19457.0,19456.0,1.151422]
[1673643076861,0.56409295,19457.0,19456.0,1.151482]
[1673643077401,0.56409295,19457.0,19456.0,1.290542]
[1673643077700,0.56409295,19457.0,19456.0,1.32143649]
[1673643077957,0.01474898,19457.0,19456.0,1.46043649]
[1673643078209,0.01474898,19457.0,19456.0,1.88081678]
[1673643078455,0.01474898,19457.0,19456.0,2.01981678]
[1673643078993,0.01474898,19457.0,19456.0,1.32143649]
[1673643079255,0.01474898,19457.0,19456.0,1.46043649]
[1673643080776,0.01474898,19457.0,19456.0,1.98436797]
[1673643081018,0.01474898,19457.0,19456.0,1.45350247]
[1673643081275,0.01474898,19457.0,19456.0,1.90543106]
[1673643081545,0.01474898,19457.0,19456.0,2.80755664]
[1673643081789,0.01474898,19457.0,19456.0,3.46603837]
[1673643082036,0.01474898,19457.0,19456.0,3.30096236]
[1673643082298,4.898e-05,19457.0,19456.0,3.4660709]
[1673643082549,0.01701784,19460.0,19457.0,0.1]
[1673643082816,0.01701784,19460.0,19458.0,2.0780137]
[1673643083067,0.01701784,19460.0,19459.0,0.216503]
[1673643083299,0.01701784,19460.0,19459.0,0.730404]
[1673643083550,0.01701784,19460.0,19459.0,0.630404]
[1673643083789,0.01701784,19460.0,19459.0,1.144305]
[1673643084031,0.01701784,19460.0,19459.0,1.3625209]
[1673643084291,0.01701784,19460.0,19459.0,1.5015209]
[1673643084540,0.01001784,19460.0,19459.0,1.6015209]
[1673643085046,0.01001784,19460.0,19459.0,2.25353004]
[1673643085289,0.01001784,19460.0,19459.0,2.15353004]
[1673643086339,0.00501784,19460.0,19459.0,2.15353004]
[1673643086834,0.00501784,19460.0,19459.0,2.15359004]
[1673643087073,0.11178784,19460.0,19459.0,1.5016409]
[1673643087326,0.61893578,19460.0,19459.0,1.5017009]
[1673643088786,0.61893578,19460.0,19459.0,1.283485]
[1673643089034,0.61893578,19460.0,19459.0,0.13918]
[1673643089293,1.13280978,19460.0,19459.0,0.13918]
[1673643089535,1.45280347,19460.0,19459.0,0.13918]
[1673643089786,1.12855547,19460.0,19459.0,0.13918]
[1673643090044,1.66731878,19460.0,19459.0,0.00018]
[1673643090297,1.45901384,19460.0,19459.0,0.11918]
[1673643090544,2.10400646,19460.0,19459.0,0.131098]
[1673643090793,1.07625846,19460.0,19459.0,0.131098]
[1673643091049,1.07625846,19460.0,19459.0,0.11918]
[1673643091295,1.28266584,19460.0,19459.0,0.11918]
[1673643091544,1.60691384,19460.0,19459.0,0.11918]
[1673643092035,1.60691384,19460.0,19459.0,0.11906]
[1673643092540,1.60691384,19460.0,19459.0,0.119]
[1673643092541,1.04287811,19460.0,19459.0,0.119]
[1673643092788,1.04287811,19460.0,19459.0,0.130906]
[1673643093312,1.03787811,19460.0,19459.0,0.130906]
[1673643093578,1.13787811,19460.0,19459.0,0.130906]
[1673643094390,0.56573011,19460.0,19459.0,0.130906]
[1673643095348,1.784e-05,19460.0,19459.0,1.158708]
[1673643095583,1.784e-05,19460.0,19459.0,1.258708]
[1673643096088,1.784e-05,19460.0,19459.0,1.158708]
[1673643096315,1.784e-05,19460.0,19459.0,0.644807]
[1673643096569,1.784e-05,19460.0,19459.0,0.119]
[1673643096570,0.75500414,19460.0,19459.0,0.119]
[1673643096810,1.412002,19460.0,19459.0,0.119]
[1673643097058,0.87744906,19460.0,19459.0,0.119]
[1673643097303,0.76950906,19460.0,19459.0,0.119]
[1673643097788,0.86950906,19460.0,19459.0,0.119]
[1673643098274,0.86950906,19460.0,19459.0,0.130906]
[1673643098753,0.86950906,19460.0,19459.0,0.119]
[1673643099003,1.23453584,19460.0,19459.0,0.119]
[1673643099573,1.55878384,19460.0,19459.0,0.11889133]
[1673643100057,1.70678384,19460.0,19459.0,0.11889133]
[1673643101293,1.70178384,19460.0,19459.0,0.11889133]
[1673643101551,2.39754273,19460.0,19459.0,0.11889133]
[1673643102028,1.70178384,19460.0,19459.0,0.11889133]
[1673643102278,2.24447355,19460.0,19459.0,0.11889133]
[1673643102517,1.48081171,19460.0,19459.0,0.13078646]
[1673643102765,0.64268971,19460.0,19459.0,0.13078646]
[1673643104526,0.64268971,19460.0,19459.0,0.11889133]
[1673643104757,1.23805294,19460.0,19459.0,0.11889133]
[1673643105038,2.16587,19460.0,19459.0,0.11889133]
[1673643105285,1.96587,19460.0,19459.0,0.11889133]
[1673643107777,2.6010203,19460.0,19459.0,0.11889133]
[1673643108276,1.96587,19460.0,19459.0,0.11889133]
[1673643108994,2.56949107,19460.0,19459.0,0.11889133]
[1673643109237,1.96587,19460.0,19459.0,0.11879073]
[1673643110494,1.86587,19460.0,19459.0,0.11879073]
[1673643110727,2.51821689,19460.0,19459.0,0.1306758]
[1673643110968,2.51821689,19460.0,19459.0,0.11879073]
[1673643111216,2.11387,19460.0,19459.0,0.11379073]
[1673643112255,2.41387,19460.0,19459.0,0.11379073]
[1673643113935,2.42237,19460.0,19459.0,0.11379073]
[1673643114428,2.72336058,19460.0,19459.0,0.11379073]
[1673643114689,2.72336058,19460.0,19459.0,0.00324325]
[1673643114690,3.56479333,19460.0,19459.0,0.00324325]
[1673643114927,2.72336058,19460.0,19459.0,0.00324325]
[1673643115158,2.57556058,19460.0,19459.0,0.00324325]
[1673643115396,2.57556058,19460.0,19458.0,6e-05]
[1673643115397,0.1,19459.0,19458.0,6e-05]
[1673643115645,2.208546,19459.0,19458.0,6e-05]
[1673643115900,2.36173658,19459.0,19458.0,6e-05]
[1673643116397,2.59034123,19459.0,19458.0,6e-05]
[1673643116636,2.36173658,19459.0,19458.0,6e-05]
[1673643116870,2.41401665,19459.0,19458.0,6e-05]
[1673643117125,2.53601665,19459.0,19458.0,0.00606]
[1673643117366,2.38282607,19459.0,19458.0,0.00606]
[1673643118101,2.38282607,19459.0,19458.0,0.00612]
[1673643118591,2.38282607,19459.0,19458.0,0.00618]
[1673643118839,4.11482225,19459.0,19458.0,0.00618]
[1673643119073,4.28156103,19459.0,19453.0,0.00499288]
[1673643119328,0.54305294,19458.0,19453.0,0.00499288]
[1673643119609,2.67650894,19457.0,19453.0,0.00499288]
[1673643119840,0.424248,19456.0,19453.0,0.00499288]
[1673643120096,1.652361,19455.0,19453.0,0.00899288]
[1673643120339,0.36965,19454.0,19453.0,0.00499288]
[1673643120582,1.397716,19454.0,19453.0,0.05999288]
[1673643120831,1.397716,19454.0,19453.0,0.00499288]
[1673643121052,1.073468,19454.0,19453.0,0.05999288]
[1673643121291,1.028066,19454.0,19453.0,0.00499288]
[1673643121536,0.527033,19454.0,19453.0,0.67659408]
[1673643121805,0.527033,19454.0,19453.0,0.67665408]
[1673643122055,0.013,19454.0,19453.0,0.67665408]
[1673643122320,0.013,19454.0,19453.0,1.19071308]
[1673643122576,0.013,19454.0,19453.0,1.25226808]
[1673643122839,0.1,19459.0,19453.0,2.55655167]
[1673643122840,0.49839246,19458.0,19453.0,2.55655167]
[1673643123084,0.013,19454.0,19453.0,2.42369662]
[1673643123331,0.026,19454.0,19453.0,2.25335624]
[1673643123584,0.49839246,19458.0,19453.0,2.19835624]
[1673643123808,0.51039246,19458.0,19455.0,0.25234422]
[1673643124059,0.49839246,19458.0,19455.0,1.31017508]
[1673643124541,0.49839246,19458.0,19456.0,0.64813047]
[1673643124798,0.513869,19461.0,19456.0,0.82596733]
[1673643125040,0.69908053,19461.0,19457.0,0.52869881]
[1673643125276,0.69908053,19461.0,19458.0,0.02983686]
[1673643125784,0.54280277,19459.0,19457.0,1.12479528]
[1673643126020,0.54280277,19459.0,19457.0,0.74393473]
[1673643126268,0.54280277,19459.0,19457.0,0.74793473]
[1673643126498,0.54280277,19459.0,19457.0,0.89627895]
[1673643126747,0.66450775,19458.0,19457.0,0.055]
[1673643127466,0.66450775,19458.0,19455.0,0.79714791]
[1673643127702,0.87481269,19458.0,19455.0,0.79714791]
[1673643127946,0.87481269,19458.0,19455.0,1.02566424]
[1673643127947,0.66450775,19458.0,19455.0,1.02566424]
[1673643128204,0.66450775,19458.0,19455.0,0.79714791]
[1673643128480,0.67750775,19458.0,19457.0,0.055]
[1673643128737,0.77750775,19458.0,19455.0,0.79714791]
[1673643128980,1.30343475,19458.0,19455.0,0.85214791]
[1673643129229,1.27843475,19458.0,19455.0,0.79714791]
[1673643129470,1.80536175,19458.0,19457.0,0.055]
[1673643129793,1.79236175,19458.0,19455.0,0.64480369]
[1673643129986,0.324248,19457.0,19455.0,0.055]
[1673643130248,1.12796,19456.0,19453.0,0.1573971]
[1673643130487,1.12796,19456.0,19453.0,0.8534954]
[1673643130488,0.324248,19455.0,19453.0,0.8534954]
[1673643130740,0.82430794,19456.0,19454.0,0.69796922]
[1673643131000,1.128007,19456.0,19454.0,0.545625]
[1673643131711,1.128007,19456.0,19455.0,0.055]
[1673643131961,1.028007,19456.0,19454.0,0.545625]
[1673643132218,1.040007,19456.0,19454.0,0.70769039]
[1673643132477,1.028007,19456.0,19454.0,0.65269039]
[1673643132733,1.040007,19456.0,19455.0,0.055]
[1673643132993,0.66643138,19455.0,19453.0,0.38585343]
[1673643133254,1.28045038,19455.0,19454.0,0.055]
[1673643133510,1.79445638,19455.0,19453.0,0.00499288]
[1673643135054,1.80645638,19455.0,19453.0,0.05999288]
[1673643135298,0.6576345,19454.0,19453.0,0.05999288]
[1673643135552,1.6857005,19454.0,19453.0,0.05999288]
[1673643135793,2.1099485,19454.0,19453.0,0.060301]
[1673643136042,2.1099485,19454.0,19453.0,0.05999288]
[1673643136294,2.1099485,19454.0,19453.0,0.00499288]
[1673643136295,2.0099485,19454.0,19453.0,0.00499288]
[1673643136551,1.6857005,19454.0,19453.0,0.00499288]
[1673643136807,1.6987005,19454.0,19453.0,0.05499288]
[1673643137063,1.6987005,19454.0,19453.0,0.43585343]
[1673643137064,0.013,19454.0,19453.0,0.43585343]
[1673643137324,0.013,19454.0,19453.0,1.04377461]
[1673643137582,0.013,19454.0,19453.0,1.10225664]
[1673643137828,0.013,19454.0,19453.0,1.35389695]
[1673643138089,0.013,19454.0,19453.0,1.35395695]
[1673643138601,0.013,19454.0,19453.0,0.79762821]
[1673643138851,0.013,19454.0,19453.0,1.10231664]
[1673643139349,0.013,19454.0,19453.0,0.95001085]
[1673643139599,0.679025,19454.0,19453.0,0.20743552]
[1673643139847,0.679025,19454.0,19453.0,0.05505288]
[1673643139848,1.25137094,19454.0,19453.0,0.05505288]
[1673643140099,1.665314,19454.0,19453.0,0.05505288]
[1673643140359,1.660314,19454.0,19453.0,0.05505288]
[1673643140860,1.460314,19454.0,19453.0,0.05505288]
[1673643141645,1.760314,19454.0,19453.0,0.05505288]
[1673643141894,1.460314,19454.0,19453.0,0.05505288]
[1673643142146,1.760314,19454.0,19453.0,0.05505288]
[1673643142396,1.96158124,19454.0,19453.0,0.05505288]
[1673643142878,1.34754824,19454.0,19453.0,0.06106359]
[1673643143123,1.02330024,19454.0,19453.0,0.06106359]
[1673643144157,1.02330024,19454.0,19453.0,0.06100359]
[1673643144658,1.53733324,19454.0,19453.0,0.05499288]
[1673643144905,1.136066,19454.0,19453.0,0.05499288]
[1673643145154,1.460314,19454.0,19453.0,0.05499288]
[1673643145406,1.974347,19454.0,19453.0,0.05499288]
[1673643146424,2.64127738,19454.0,19453.0,0.05499288]
[1673643146673,1.974347,19454.0,19453.0,0.05499288]
[1673643146916,2.361847,19454.0,19453.0,0.05499288]
[1673643147897,3.03952336,19454.0,19453.0,0.05499288]
[1673643148144,2.73952336,19454.0,19453.0,0.05499288]
[1673643148928,2.061847,19454.0,19453.0,0.05499288]
[1673643149677,2.67350386,19454.0,19453.0,0.05499288]
[1673643149918,2.061847,19454.0,19453.0,0.05499288]
[1673643150661,2.56530814,19454.0,19453.0,0.05499288]
[1673643151167,2.061847,19454.0,19453.0,0.05499288]
[1673643151623,2.361847,19454.0,19453.0,0.05499288]
[1673643152126,3.37529703,19454.0,19453.0,0.05499288]
[1673643152391,2.545947,19454.0,19453.0,0.05499288]
[1673643152632,2.282847,19454.0,19453.0,0.05499288]
[1673643152878,3.10611564,19454.0,19453.0,0.05499288]
[1673643153127,3.25974356,19454.0,19453.0,0.00157165]
[1673643153623,3.25974356,19454.0,19452.0,0.00511422]
[1673643153624,3.25174356,19454.0,19452.0,0.00511422]
[1673643153888,3.01499556,19454.0,19452.0,0.00511422]
[1673643154150,0.808848,19453.0,19452.0,0.00511422]
[1673643154387,2.6598846,19453.0,19452.0,0.00511422]
[1673643154647,2.75984395,19453.0,19452.0,0.00511422]
[1673643155197,1.936966,19453.0,19452.0,0.00511422]
[1673643155447,1.943966,19453.0,19452.0,0.01111422]
[1673643155985,1.936966,19453.0,19452.0,0.00511422]
[1673643156234,2.072966,19453.0,19452.0,0.00611422]